Cogmind - Beta 11.1 @@@ ROGUE MODE // 2022.05.11 @ 21:12:00 Player: kway_side Result: Destroyed by as-37109 with Assembled Blade Performance ------------- Evolutions (0) 0 Regions Visited (4) 800 Robots Destroyed (26) 130 Value Destroyed (807) 807 Prototype IDs (3) 60 Alien Tech Used (0) 0 Bonus (300) 300 TOTAL SCORE: 2097 Bonus ------- Aligned with FarCom 300 Cogmind --------- Core Integrity 0/250 Matter 265/300 Energy 246/250 System Corruption 0% Temperature Hot (246) Movement Treading (320) Ox2 Location -9/Mines Parts ------- > --- POWER (1) -------- Ion Engine > --- PROPULSION (2) --- Light Treads > --- UTILITY (2) ------ High-capacity Storage Unit Seismic Detector > --- WEAPON (2) ------- Particle Gun Particle Gun > --- INVENTORY (20) --- Ion Engine Light Nuclear Core Light Treads Cooling System Large Storage Unit Structural Scanner Hacking Suite Skeleton Box EM Pulse Gun Medium Laser Medium Laser Particle Gun Beam Cannon Assault Rifle Grenade Launcher Mini Grenade Launcher Mining Laser Mining Claw Peak State ------------ > --- POWER ------------ Ion Engine > --- PROPULSION ------- Light Treads Compact Wheel > --- UTILITY ---------- High-capacity Storage Unit Skeleton Box > --- WEAPON ----------- Particle Gun Particle Gun > --- INVENTORY -------- Ion Engine Light Nuclear Core Light Treads Light Treads Cooling System Large Storage Unit Cargo Storage Unit Seismic Detector Hacking Suite EM Pulse Gun Medium Laser Medium Laser Particle Gun Beam Cannon Assault Rifle Grenade Launcher Mini Grenade Launcher Mining Laser Mining Claw [Rating: 16] Favorites ----------- Power Ion Engine Engine Ion Engine Propulsion Light Treads Treads Light Treads Leg Aluminum Leg Wheel Compact Wheel Utility High-capacity Storage Unit Device Structural Scanner Storage High-capacity Storage Unit Weapon Particle Gun Energy Gun Particle Gun Ballistic Gun Assault Rifle Launcher Grenade Launcher Special Weapon Mining Laser Slashing Weapon Mining Claw Build | -11 -10 -10 -10 -9 ------- Run | Scr Mat Min Exi Min Slots Evolved . | . . . . . Power . | . . . . . Propulsion . | . . . . . Utility . | . . . . . Weapon . | . . . . . Parts Attached 35 | . 25 5 2 3 Power 3 | . 3 . . . Engine 3 | . 3 . . . Core . | . . . . . Reactor . | . . . . . Propulsion 7 | . 4 2 . 1 Treads 6 | . 4 1 . 1 Leg . | . . . . . Wheel 1 | . . 1 . . Hover . | . . . . . Flight . | . . . . . Utility 8 | . 5 1 2 . Device 6 | . 3 1 2 . Storage 2 | . 2 . . . Processor . | . . . . . Hackware . | . . . . . Protection . | . . . . . Artifact . | . . . . . Weapon 17 | . 13 2 . 2 Energy Gun 10 | . 8 1 . 1 Energy Cannon . | . . . . . Ballistic Gun . | . . . . . Ballistic Cannon . | . . . . . Launcher 5 | . 3 1 . 1 Special Weapon 1 | . 1 . . . Impact Weapon . | . . . . . Slashing Weapon 1 | . 1 . . . Piercing Weapon . | . . . . . Special Melee Weapon . | . . . . . Unidentified Prototypes 1 | . . . 1 . Parts Lost 1 | . . . . 1 Power . | . . . . . Propulsion 1 | . . . . 1 Utility . | . . . . . Weapon . | . . . . . Highest Loss Streak 1 | . . . . 1 To Critical Strikes . | . . . . . Average Slot Usage (%) 99 | . 99 100 99 99 Engine 13 | . 13 14 14 14 Treads 22 | . 26 23 14 14 Wheel 4 | . . 4 14 13 Device 13 | . 13 14 13 14 Storage 14 | . 14 14 14 14 Energy Gun 26 | . 23 27 28 28 Ballistic Gun 1 | . 3 . . . Naked Turns . | . . . . . Heaviest Build 53 | 11 53 53 53 52 Greatest Support 40 | 20 40 40 16 16 Greatest Overweight (x) 3 | . 1 3 3 3 Average Overweight (x) 1 | . . 1 3 3 Largest Inventory Capacity 20 | . 20 20 20 20 Average Capacity 18 | . 17 20 20 20 Most Carried 20 | . 20 20 20 20 Average Carried 17 | . 14 19 19 19 Final Capacity 20 | 8 20 20 20 20 Final Carried 20 | 6 20 20 20 18 Class Distribution -------------------- 100% | Mutant Dominant Class ---------------- Mutant | -10/Materials Mutant | -10/Mines Mutant | -10/Exiles Mutant | -9/Mines Resources | -11 -10 -10 -10 -9 ----------- Run | Scr Mat Min Exi Min Matter Collected 661 | 194 357 90 . 20 Remotely . | . . . . . Salvage Created 839 | . 567 272 . . Parts 48 | . 33 15 . . Haulers Intercepted 2 | . 2 . . . Recyclers Shooed . | . . . . . Parts Field Recycled . | . . . . . Retrieved Matter . | . . . . . Parts Self-Destructed . | . . . . . Prevented . | . . . . . Kills | -11 -10 -10 -10 -9 ------- Run | Scr Mat Min Exi Min Combat Hostiles Destroyed 21 | . 14 7 . . Guns 14 | . 7 7 . . AOE 7 | . 7 . . . Classes Destroyed 5 | . 5 . . . Worker 1 | . 1 . . . Hauler 2 | . 2 . . . Operator 2 | . 2 . . . Swarmer 3 | . 3 . . . Grunt 18 | . 11 7 . . Best Kill Streak 3 | . 3 2 . . Combat Bots Only 3 | . 3 2 . . Max Kills in Single Turn 2 | . 2 1 . . Gunslinging . | . . . . . Exploded 2 | . 2 . . . Melee . | . . . . . Uniques/NPCs Destroyed . | . . . . . Combat | -11 -10 -10 -10 -9 -------- Run | Scr Mat Min Exi Min Damage Taken 1182 | . 486 331 . 365 Core 271 | . 107 46 . 118 Absorbed by Shields . | . . . . . Core Remaining (%) 100 | 100 . . . . Volleys Fired 78 | . 48 24 . 6 Largest 2 | . 2 2 . 2 Hottest 130 | . 130 130 . 130 Shots Fired 141 | . 88 44 . 9 Gun 128 | . 80 40 . 8 Cannon . | . . . . . Launcher 12 | . 7 4 . 1 Special 1 | . 1 . . . Kinetic 12 | . 12 . . . Thermal 67 | . 19 40 . 8 Explosive 12 | . 7 4 . 1 Electromagnetic 50 | . 50 . . . Robot Hit Streak 8 | . 8 7 . 2 Robot Miss Streak 6 | . 6 2 . 5 Penetration Max . | . . . . . Secondary Targets 2 | . 1 1 . . Max Gunslinging Chain 1 | . 1 1 . . Shots Hit Robots 84 | . 55 27 . 2 Core Hits 49 | . 27 15 . 7 Critical Kills . | . . . . . Critical Parts Destroyed 2 | . 2 . . . Critical Strikes 3 | . 2 . . 1 Burn 1 | . . . . 1 Destroy 2 | . 2 . . . Melee Attacks 3 | . 3 . . . Impact . | . . . . . Slashing 3 | . 3 . . . Piercing . | . . . . . Sneak Attacks . | . . . . . Combat Hostiles . | . . . . . Follow-up Attacks . | . . . . . Damage Inflicted 2032 | . 1311 628 . 93 Guns 1123 | . 691 402 . 30 Cannons . | . . . . . Explosions 909 | . 620 226 . 63 Melee . | . . . . . Ramming . | . . . . . Kinetic 133 | . 133 . . . Thermal 677 | . 245 402 . 30 Explosive 831 | . 542 226 . 63 Electromagnetic 391 | . 391 . . . Impact . | . . . . . Slashing . | . . . . . Piercing . | . . . . . Highest Corruption . | . . . . . Average Corruption . | . . . . . Corruption Purged . | . . . . . Corruption Blocked . | . . . . . Overload Shots . | . . . . . Overflow Damage 34 | . 34 . . . Projectiles . | . . . . . Explosions 34 | . 34 . . . Melee . | . . . . . Knockbacks . | . . . . . Impact . | . . . . . Kinetic . | . . . . . Secondary . | . . . . . Self-Inflicted Damage 31 | . . 31 . . Shots 1 | . . 1 . . Rammed 1 | . 1 . . . Targets Rammed 1 | . 1 . . . Kicked . | . . . . . Crushed . | . . . . . Highest Temperature 363 | . 48 363 . 246 Average Temperature 68 | . 19 126 . 98 Received Heat Transfer 536 | . 246 210 . 80 Effects 3 | . . 3 . . Interference 3 | . . 3 . . Siege Activations . | . . . . . Robots Corrupted . | . . . . . Combat Hostiles . | . . . . . Parts Fried 2 | . 2 . . . Impact Corruptions . | . . . . . Robots Melted . | . . . . . Combat Hostiles . | . . . . . Parts Melted . | . . . . . Heat Transferred 1617 | . 507 962 . 148 Parts Sabotaged . | . . . . . Parts Stolen . | . . . . . Parts Stripped . | . . . . . Power Chain Reactions 1 | . 1 . . . Missiles Intercepted . | . . . . . Alert | -11 -10 -10 -10 -9 ------- Run | Scr Mat Min Exi Min Peak Influence 342 | . 342 323 . 27 Initial 109 | . . 109 . . Average 144 | . 155 155 . 1 Maximum Alert Level 1 | . 1 1 . . Low Security (%) 71 | . 69 67 . 100 Level 1 28 | . 30 32 . . Level 2 . | . . . . . Level 3 . | . . . . . Level 4 . | . . . . . Level 5 . | . . . . . High Security . | . . . . . Max Security . | . . . . . Squads Dispatched 3 | . 3 . . . Investigation 1 | . 1 . . . Extermination . | . . . . . Reinforcement 2 | . 2 . . . Assault . | . . . . . Garrison . | . . . . . Intercept . | . . . . . Searches Triggered . | . . . . . Construction Impeded . | . . . . . Haulers Reinforced . | . . . . . Active Scanning Responses . | . . . . . Cargo Convoy Interrupts . | . . . . . Stealth | -11 -10 -10 -10 -9 --------- Run | Scr Mat Min Exi Min Distress Signals . | . . . . . Communications Jammed . | . . . . . Distress Signals . | . . . . . Times Spotted 60 | . 39 11 . 10 Peak Tracking Total 12 | . 4 2 . 12 Tactical Retreats 10 | . 8 2 . . Traps | -11 -10 -10 -10 -9 ------- Run | Scr Mat Min Exi Min Traps Triggered 1 | . 1 . . . Indirectly . | . . . . . Trap Hack Attempts . | . . . . . Triggered . | . . . . . Disarmed . | . . . . . Reprogrammed . | . . . . . Reused . | . . . . . Traps Extracted . | . . . . . Installed . | . . . . . Triggered . | . . . . . Machines | -11 -10 -10 -10 -9 ---------- Run | Scr Mat Min Exi Min Machines Disabled 5 | . 4 1 . . Max in Single Turn 1 | . 1 1 . . Machines Sabotaged . | . . . . . Garrisons Compromised . | . . . . . Overloaded Fab Kills . | . . . . . Hacking | -11 -10 -10 -10 -9 --------- Run | Scr Mat Min Exi Min Machines Accessed 5 | . 5 . . . Terminals 3 | . 3 . . . Fabricators . | . . . . . Repair Stations . | . . . . . Recycling Units 2 | . 2 . . . Scanalyzers . | . . . . . Garrison Access . | . . . . . Total Hacks 16 | . 16 . . . Successful 8 | . 8 . . . Failed 8 | . 8 . . . Catastrophic 2 | . 2 . . . Database Lockouts . | . . . . . Manual 10 | . 9 . 1 . Terminals 13 | . 13 . . . Fabricators . | . . . . . Repair Stations . | . . . . . Recycling Units 3 | . 3 . . . Scanalyzers . | . . . . . Garrison Access . | . . . . . Terminal Hacks 4 | . 4 . . . Robot Analysis 1 | . 1 . . . Prototype ID Bank 1 | . 1 . . . Hauler Manifests 1 | . 1 . . . Registered Components 1 | . 1 . . . Fabricator Hacks . | . . . . . Repair Station Hacks . | . . . . . Recycling Unit Hacks 3 | . 3 . . . Report Inventory 2 | . 2 . . . Retrieve Components 1 | . 1 . . . Scanalyzer . | . . . . . Garrison Access Hacks . | . . . . . Unauthorized Hacks 1 | . 1 . . . Terminals 1 | . 1 . . . Operators 1 | . 1 . . . Fabricators . | . . . . . Repair Stations . | . . . . . Recycling Units . | . . . . . Scanalyzers . | . . . . . Garrison Access . | . . . . . Data Cores Recovered . | . . . . . Used . | . . . . . Hacking Detections 3 | . 3 . . . Full Trace Events 1 | . 1 . . . Feedback Events . | . . . . . Feedback Blocked . | . . . . . Robot Schematics Acquired . | . . . . . Robots Built . | . . . . . Authchips . | . . . . . Time . | . . . . . Total Robot Build Rating . | . . . . . Part Schematics Acquired . | . . . . . Parts Built . | . . . . . Authchips . | . . . . . Time . | . . . . . Total Part Build Rating . | . . . . . Parts Repaired . | . . . . . Time . | . . . . . Parts Recycled . | . . . . . Recycled Matter . | . . . . . Retrieved Matter . | . . . . . Retrieved Components 3 | . 3 . . . Parts Scanalyzed . | . . . . . Part Schematics Acquired . | . . . . . Parts Damaged . | . . . . . Bothacking | -11 -10 -10 -10 -9 ------------ Run | Scr Mat Min Exi Min Used RIF Installer . | . . . . . Robots Hacked . | . . . . . Non-combat . | . . . . . Combat . | . . . . . Robot Hacks Applied . | . . . . . Relay Couplers Released . | . . . . . Fabnet Peak Effective % . | . . . . . Robots Rewired . | . . . . . Allies Hacked . | . . . . . Hacks Repelled . | . . . . . Allies | -11 -10 -10 -10 -9 -------- Run | Scr Mat Min Exi Min Total Allies . | . . . . . Largest Group . | . . . . . Highest-Rated Group . | . . . . . Highest-Rated Ally . | . . . . . Total Orders . | . . . . . Ally Attacks . | . . . . . Total Damage . | . . . . . Kills . | . . . . . Allies Corrupted . | . . . . . Allies Melted . | . . . . . Intel | -11 -10 -10 -10 -9 ------- Run | Scr Mat Min Exi Min Robot Analysis Total 1 | . 1 . . . Derelict Logs Recovered 2 | . . 1 . 1 Drone Launches . | . . . . . Drone Recoveries . | . . . . . Exploration | -11 -10 -10 -10 -9 ------------- Run | Scr Mat Min Exi Min Turns Passed 4660 | . 2268 1155 967 270 Spaces Moved 2261 | 1 893 533 664 170 Core . | . . . . . Treads 1126 | . 828 298 . . Legs 66 | 1 65 . . . Wheels 1069 | . . 235 664 170 Hover . | . . . . . Flight . | . . . . . Fastest Speed 120 | 120 120 145 145 145 Average Speed 184 | 120 214 198 145 145 Slowest Speed 240 | 120 240 240 145 145 Overloaded Moves . | . . . . . Propulsion Burnouts . | . . . . . Robots Hopped . | . . . . . Cave-ins Triggered . | . . . . . Exploration Rate (%) 62 | 2 94 76 91 51 Regions Visited 4 Branch Regions 3 Pre-discovered Areas 2 | . . 1 . 1 Known Exits Taken . | . . . . . Unknown Exits Taken 4 | 1 1 1 1 . Scrap Searched 1 | . . 1 . . Spaces Dug 2 | . 2 . . . Terrain Destroyed 98 | . 48 45 . 5 Melee 1 | . 1 . . . Projectile 1 | . 1 . . . AOE 96 | . 46 45 . 5 Terrain Rammed . | . . . . . Walls Destroyed . | . . . . . Machines Disabled . | . . . . . Actions | -11 -10 -10 -10 -9 --------- Run | Scr Mat Min Exi Min Total 2582 | . 1144 586 668 184 Wait 170 | . 144 23 . 3 Move 2257 | . 892 532 663 170 Hop . | . . . . . Pick Up 20 | . 17 1 1 1 Fast Attach 3 | . 2 . 1 . Attach 1 | . . . . 1 Detach . | . . . . . Swap 31 | . 23 5 1 2 Drop 15 | . 11 1 2 1 Fire 78 | . 48 24 . 6 Melee 3 | . 3 . . . Ram . | . . . . . Kick . | . . . . . Crush 1 | . 1 . . . Escape Stasis . | . . . . . Rewire 3 | . 3 . . . Trap . | . . . . . Miscellaneous . | . . . . . Route ------- -11/Scrapyard -10/Materials (discovered 5 exits: [*Mat x3] / [*Min x2]) -10/Mines (discovered 3 exits: [*Mat x2] / *Exi) -10/Exiles (discovered 2 exits: [*Min x2]) -9/Mines History --------- Turn | Location | Event 1 | -11/Scrapyard | Discovered new exit (range 0) 1 | -11/Scrapyard | Entered Materials 304 | -10/Materials | Build established: Mutant 432 | -10/Materials | Discovered new exit (range 11) 646 | -10/Materials | Discovered new exit (range 16) 702 | -10/Materials | Discovered new exit (range 15) 1149 | -10/Materials | Discovered new exit (range 8) 1913 | -10/Materials | Discovered new exit (range 15) 2269 | -10/Materials | Entered Mines 2276 | -10/Mines | Core integrity fell below 50% 2353 | -10/Mines | Deemed a non-threat by the Exiles lab entrance 2353 | -10/Mines | Discovered new exit (range 5) 2469 | -10/Mines | Learned location of Recycling (-9) 2488 | -10/Mines | Discovered new exit (range 11) 3327 | -10/Mines | Discovered new exit (range 8) 3424 | -10/Mines | Entered Exiles 3459 | -10/Exiles | Met 8R-AWN 3484 | -10/Exiles | Met EX-HEX 3538 | -10/Exiles | Met EX-BIN 3559 | -10/Exiles | Aligned with FarCom system 3561 | -10/Exiles | Given EX-Vault access code 3630 | -10/Exiles | Opened EX-Vault 3642 | -10/Exiles | Found Prototype Device 3642 | -10/Exiles | Identified Skeleton Box 3683 | -10/Exiles | Warned to stay clear of 0b10 Research branches 3732 | -10/Exiles | Met EX-DEC 3787 | -10/Exiles | Visited The Gauntlet 4022 | -10/Exiles | Discovered new exit (range 14) 4195 | -10/Exiles | Discovered new exit (range 14) 4391 | -10/Exiles | Left Exiles lab with Skeleton Box 4391 | -10/Exiles | Entered Mines 4619 | -9/Mines | Learned location of Storage (-9) 4620 | -9/Mines | Assembled infested the area 4625 | -9/Mines | Assisted by a Guerilla fighting off Assembled 4650 | -9/Mines | Core integrity fell below 20% 4661 | -9/Mines | Destroyed by as-37109 with Assembled Blade Last Messages --------------- 04638_ HV Slug penetrates as-84824. 04638_ as-84824 suffers critical hit (Destroy). 04638_ as-84824 destroyed. 04641_ R-06 Scavenger destroyed. 04641_ K-01 Serf collects debris. 04642_ HV Slug penetrates Wall. 04646_ K-01 Serf collects debris. 04647_ HV Slug penetrates as-46971. 04647_ as-46971 suffers critical hit (Destroy). 04647_ as-46971 destroyed. 04649_ L0-871(h) suffers critical hit (Destroy). 04649_ HV Slug penetrates as-21021. 04649_ as-21021 destroyed. 04651_ HV Slug penetrates Wall. 04653_ HV Slug penetrates as-59109. 04653_ as-59109 suffers critical hit (Destroy). 04653_ L0-871(h) destroyed. 04654_ as-37109 suffers critical hit (Burn). 04656_ Lgt. Treads severed. 04657_ Com. Wheel destroyed. Map ----- +----------------------------------------------------+ | | | | | | | | | | | | | | | | | | | ?????????????????????????????????????????????????? | | ?????????????????????????????????????????????????? | | ?????????????????????????????????????????????????? | | ???????????????????????##??????????????????#####?? | | ?????????????????????## ?????????????????## ##? | | ?????????????????????# ?????????????##### #? | | ?????????????????????# ??????g????## #?? | | ?????????????????????# #??????g????# ##?? | | ????????????????????## #???????????# #??? | | ???????????#???????##$ #???????????## ##?? | | ??????????? ?????# #????????????# ##? | | ???????????? a ???## ?????????????# ## | | ?????????????# ### #?????????????# # | | ?????????????# #?????????????# # | | ?????????????# a ##????????????## ## | | ??????????????????# a #####????????## ##? | | ??????????????????## a@ ###??????# ##?? | | ??????????????????# ## ###### ######??? | | ???????????????# ##???????? | | ???????????????## #???###??? | | ??????????# #### #### ### ## #?## ###? | | ??????????# %|a* ##????#?# ###### ## | | ??????????# =%aa! #?????#?# ##### # | | ??????????#####= ! ##### ### # | | ??????????????## % ## ##### # | | ???????????????#% * #?# #??## ## | | ???????????????## #### #??# ###? | | ????????????????## ## #### #??# ##??? | | ?????????????????###### #?# #### ##???? | | ??????????????????????# #?# #### #????? | | ??????????????????????# ## ##??# #?# #????? | | ??????????????????????# #?####???# ### #????? | | ?????????????????????## #????????# #????? | | ????????????????????## ##???????## ######????? | | ???????????????????## #????????### #?????????? | | ??????????????????## #??????????# ######????? | | ?????????????????## ##?????????# #????? | | ?????????????????# """ ##????????###### #????? | | ?????????????????# """ ##????????????# #????? | | ?????????????????## """ #????????????# ###??? | | ??????????????????# #???????????## ##?? | +----------------------------------------------------+ Best States ------------- Heat Dissipation 47 Energy Generation 10 Energy Capacity 250 Matter Stores 300 Matter Capacity 300 Sight Range 16 Terrain Scan Density 10 Evasion (%) 55 Recoil Reduction 2 Item Schematics ----------------- None Robot Schematics ------------------ None Fabricated ------------ Nothing Alien Tech Used ----------------- None Achievements -------------- None Challenges ------------ None Game ------ Seed CoolingMasterBay Manual? 0 Play Time 00:37:28 Cumulative 95.0 hours Start 2022.05.11 @ 20:29:04 End 2022.05.11 @ 21:12:00 Sessions 1 Manual Loads 0 Difficulty Rogue Special Mode None Game No. 99 Rogue 99 Adventurer 0 Explorer 0 Win Type - Total 0 Types 0/0/0/0/0/0/0/0/0 Lore% 26 Gallery% 36 Achievement% 30 Wizard Run 0 Options --------- ASCII 0 Keyboard 0 Movement Numpad Keybinds 0 Fullscreen 2 Font 18/Smallcaps Map View 76x50 Tactical HUD 1 Map Filters NONE Filters NONE Steam 1 RUN: 20300ef1-c230-47a4-ac8c-5037af8302c5